[Event "*** Titled Tuesday 3|2 Blitz"]
[Site "Chess.com"]
[Date "2016.10.04"]
[Round "2"]
[White "GMKrikor"]
[Black "filali-oujda"]
[Result "1-0"]
[WhiteElo "2581"]
[BlackElo "2300"]
[TimeControl "180+2"]
[EndTime "11:20:57 PDT"]
[Termination "GMKrikor won by resignation"]

1. e4 {[%clk 0:03:02]} 1... c6 {[%clk 0:03:00.6]} 2. d4 {[%clk 0:03:02.4]} 2...
d5 {[%clk 0:03:01.6]} 3. e5 {[%clk 0:03:04.1]} 3... Bf5 {[%clk 0:03:02.2]} 4.
Nf3 {[%clk 0:03:05.5]} 4... e6 {[%clk 0:03:03.2]} 5. Be2 {[%clk 0:03:07]} 5...
Nd7 {[%clk 0:03:04.4]} 6. O-O {[%clk 0:03:08.4]} 6... c5 {[%clk 0:03:03.9]} 7.
c4 {[%clk 0:03:05]} 7... dxc4 {[%clk 0:02:45.3]} 8. d5 {[%clk 0:03:06.3]} 8...
exd5 {[%clk 0:02:42.2]} 9. Qxd5 {[%clk 0:03:08.2]} 9... Be6 {[%clk 0:02:35.8]}
10. Qxb7 {[%clk 0:03:08.5]} 10... Nb6 {[%clk 0:02:18.5]} 11. Nc3 {[%clk
0:03:09.5]} 11... Qc8 {[%clk 0:02:13.7]} 12. Qe4 {[%clk 0:03:07.2]} 12... h6
{[%clk 0:01:57]} 13. a4 {[%clk 0:03:04]} 13... Ne7 {[%clk 0:01:44.4]} 14. a5
{[%clk 0:03:00.1]} 14... Nbd5 {[%clk 0:01:45.6]} 15. Bxc4 {[%clk 0:03:01.2]}
15... Nxc3 {[%clk 0:01:46.4]} 16. bxc3 {[%clk 0:03:01.8]} 16... Bxc4 {[%clk
0:01:37.7]} 17. Qxc4 {[%clk 0:02:49.7]} 17... Qc6 {[%clk 0:01:36.4]} 18. Rd1
{[%clk 0:02:45.7]} 18... Ng6 {[%clk 0:01:33.8]} 19. Be3 {[%clk 0:02:34.2]} 19...
Be7 {[%clk 0:01:34.5]} 20. Nd4 {[%clk 0:02:29.8]} 20... Nxe5 {[%clk 0:01:24.8]}
21. Nxc6 {[%clk 0:02:24.5]} 21... Nxc4 {[%clk 0:01:25.7]} 22. Bf4 {[%clk
0:02:20.1]} 22... Bf6 {[%clk 0:01:21.5]} 23. Rd5 {[%clk 0:02:16.6]} 23... O-O
{[%clk 0:01:17.9]} 24. Rxc5 {[%clk 0:02:13.8]} 24... Nb2 {[%clk 0:01:19.2]} 25.
Be3 {[%clk 0:01:58.6]} 25... a6 {[%clk 0:00:47.1]} 26. Bd4 {[%clk 0:01:46.7]}
26... Nd3 {[%clk 0:00:30.2]} 27. Rc4 {[%clk 0:01:24.8]} 27... Bg5 {[%clk
0:00:17.8]} 28. g3 {[%clk 0:01:17.7]} 28... Bd8 {[%clk 0:00:17.6]} 29. Rb1
{[%clk 0:01:14.8]} 29... Bc7 {[%clk 0:00:16.9]} 30. Rb7 {[%clk 0:01:15.6]} 30...
Bd6 {[%clk 0:00:17.8]} 31. Rd7 {[%clk 0:01:16]} 31... Nb2 {[%clk 0:00:17.9]} 32.
Rb4 {[%clk 0:01:04.4]} 32... Bxb4 {[%clk 0:00:18.6]} 33. cxb4 {[%clk 0:01:06.3]}
33... Nc4 {[%clk 0:00:18.6]} 34. Bc5 {[%clk 0:01:05.2]} 34... Rfe8 {[%clk
0:00:19]} 35. Kg2 {[%clk 0:00:58.4]} 35... Na3 {[%clk 0:00:20.3]} 36. Ne7+
{[%clk 0:00:58.2]} 36... Kh8 {[%clk 0:00:20.6]} 37. Nf5 {[%clk 0:00:59.7]} 37...
Kg8 {[%clk 0:00:20.5]} 38. Nd6 {[%clk 0:01:00.2]} 38... Rf8 {[%clk 0:00:20.3]}
39. Rb7 {[%clk 0:01:00.9]} 39... Nb5 {[%clk 0:00:20.2]} 40. Nxb5 {[%clk
0:01:02.1]} 40... axb5 {[%clk 0:00:21.7]} 41. Bxf8 {[%clk 0:01:03.4]} 41... Rb8
{[%clk 0:00:21.9]} 42. Rxb8 {[%clk 0:01:04.6]} 42... Kh7 {[%clk 0:00:22.9]} 43.
a6 {[%clk 0:01:05]} 1-0

[Event "*** Titled Tuesday 3|2 Blitz"]
[Site "Chess.com"]
[Date "2016.10.04"]
[Round "2"]
[White "Dale"]
[Black "Usurpov"]
[Result "1-0"]
[WhiteElo "2049"]
[BlackElo "2288"]
[TimeControl "180+2"]
[EndTime "11:21:25 PDT"]
[Termination "Dale won on time"]

1. h4 {[%clk 0:03:01.9]} 1... d5 {[%clk 0:02:57.4]} 2. Nf3 {[%clk 0:03:01.6]}
2... c6 {[%clk 0:02:56.4]} 3. c4 {[%clk 0:03:00.9]} 3... e6 {[%clk 0:02:53.1]}
4. d4 {[%clk 0:02:58.7]} 4... Nf6 {[%clk 0:02:48.7]} 5. Qc2 {[%clk 0:02:57.9]}
5... Ne4 {[%clk 0:02:17.9]} 6. g4 {[%clk 0:02:51.2]} 6... f5 {[%clk 0:02:07.2]}
7. gxf5 {[%clk 0:02:50.9]} 7... exf5 {[%clk 0:02:08.3]} 8. Rg1 {[%clk
0:02:47.3]} 8... dxc4 {[%clk 0:01:48.9]} 9. Qxc4 {[%clk 0:02:36.7]} 9... b5
{[%clk 0:01:35.1]} 10. Qb3 {[%clk 0:02:33.1]} 10... Qd5 {[%clk 0:01:28.4]} 11.
Qxd5 {[%clk 0:02:27.6]} 11... cxd5 {[%clk 0:01:30.3]} 12. e3 {[%clk 0:02:28.8]}
12... a6 {[%clk 0:01:25.8]} 13. Nc3 {[%clk 0:02:24.2]} 13... Bb7 {[%clk
0:01:15.2]} 14. h5 {[%clk 0:02:18.9]} 14... Nd7 {[%clk 0:01:12.6]} 15. Nxe4
{[%clk 0:02:16.9]} 15... dxe4 {[%clk 0:01:04.6]} 16. Nh4 {[%clk 0:02:14.9]}
16... Kf7 {[%clk 0:00:31.1]} 17. Nxf5 {[%clk 0:02:12.2]} 17... Nf6 {[%clk
0:00:32.6]} 18. Be2 {[%clk 0:01:54.6]} 18... Rc8 {[%clk 0:00:26.7]} 19. Bd2
{[%clk 0:01:49.3]} 19... g6 {[%clk 0:00:21.9]} 20. Ng3 {[%clk 0:01:44.7]} 20...
Rc2 {[%clk 0:00:21]} 21. a4 {[%clk 0:01:33.9]} 21... Bd6 {[%clk 0:00:14.3]} 22.
axb5 {[%clk 0:01:33.2]} 22... axb5 {[%clk 0:00:16.2]} 23. Ra7 {[%clk 0:01:32.6]}
23... Rb8 {[%clk 0:00:16.7]} 24. hxg6+ {[%clk 0:01:30.5]} 24... hxg6 {[%clk
0:00:16.8]} 25. Bxb5 {[%clk 0:01:23.3]} 25... Rxb2 {[%clk 0:00:15.1]} 26. Bc4+
{[%clk 0:01:20.4]} 26... Ke7 {[%clk 0:00:14.4]} 27. Ne2 {[%clk 0:01:17.4]} 27...
Ra8 {[%clk 0:00:08.2]} 28. Rxa8 {[%clk 0:01:14.9]} 28... Bxa8 {[%clk 0:00:10.1]}
29. Rxg6 {[%clk 0:01:11.3]} 29... Rb1+ {[%clk 0:00:11.3]} 30. Bc1 {[%clk
0:01:03.2]} 30... Bd5 {[%clk 0:00:07.4]} 31. Bxd5 {[%clk 0:00:55.9]} 31... Nxd5
{[%clk 0:00:09.3]} 32. Kd2 {[%clk 0:00:56.9]} 32... Ra1 {[%clk 0:00:08.3]} 33.
Rg7+ {[%clk 0:00:50.9]} 33... Ke6 {[%clk 0:00:09.3]} 34. Rb7 {[%clk 0:00:51.5]}
34... Ra2+ {[%clk 0:00:09.5]} 35. Rb2 {[%clk 0:00:51.3]} 35... Ra8 {[%clk
0:00:09.1]} 36. Nc3 {[%clk 0:00:48.6]} 36... Bb4 {[%clk 0:00:07.9]} 37. Rxb4
{[%clk 0:00:45.3]} 37... Nxb4 {[%clk 0:00:07.8]} 38. Nxe4 {[%clk 0:00:46.5]}
38... Kd5 {[%clk 0:00:08.7]} 39. Nc5 {[%clk 0:00:44.8]} 39... Kc4 {[%clk
0:00:07.7]} 40. Ke2 {[%clk 0:00:37.6]} 40... Ra2+ {[%clk 0:00:04.1]} 41. Kf3
{[%clk 0:00:37.6]} 1-0

[Event "*** Titled Tuesday 3|2 Blitz"]
[Site "Chess.com"]
[Date "2016.10.04"]
[Round "2"]
[White "NTBT_DHS"]
[Black "maciek_92"]
[Result "1-0"]
[WhiteElo "2461"]
[BlackElo "2586"]
[TimeControl "180+2"]
[EndTime "11:21:30 PDT"]
[Termination "NTBT_DHS won on time"]

1. d4 {[%clk 0:02:56.5]} 1... Nf6 {[%clk 0:03:00.6]} 2. c4 {[%clk 0:02:57.7]}
2... e6 {[%clk 0:03:01]} 3. Nc3 {[%clk 0:02:57.9]} 3... Bb4 {[%clk 0:03:01.4]}
4. e3 {[%clk 0:02:59.2]} 4... O-O {[%clk 0:03:01.9]} 5. Ne2 {[%clk 0:02:59.8]}
5... Re8 {[%clk 0:02:57.6]} 6. a3 {[%clk 0:02:52.3]} 6... Bf8 {[%clk 0:02:58.2]}
7. b4 {[%clk 0:02:50.5]} 7... a5 {[%clk 0:02:57.4]} 8. b5 {[%clk 0:02:49.7]}
8... b6 {[%clk 0:02:53]} 9. Ng3 {[%clk 0:02:43.4]} 9... d5 {[%clk 0:02:53.4]}
10. Bb2 {[%clk 0:02:41.3]} 10... Bb7 {[%clk 0:02:53.5]} 11. cxd5 {[%clk
0:02:37.9]} 11... exd5 {[%clk 0:02:52.5]} 12. Bd3 {[%clk 0:02:38]} 12... Nbd7
{[%clk 0:02:48.9]} 13. O-O {[%clk 0:02:38.9]} 13... g6 {[%clk 0:02:49.8]} 14.
Qc2 {[%clk 0:02:33.8]} 14... Bg7 {[%clk 0:02:40.5]} 15. a4 {[%clk 0:02:34.5]}
15... h5 {[%clk 0:02:39.2]} 16. h3 {[%clk 0:02:32.8]} 16... Nf8 {[%clk
0:02:30.3]} 17. Rac1 {[%clk 0:02:26.6]} 17... h4 {[%clk 0:02:27.6]} 18. Nge2
{[%clk 0:02:24.9]} 18... Ne6 {[%clk 0:02:27.5]} 19. f4 {[%clk 0:02:25.5]} 19...
Nf8 {[%clk 0:02:23.9]} 20. Nd1 {[%clk 0:02:26.4]} 20... Rc8 {[%clk 0:02:23.5]}
21. Rf3 {[%clk 0:02:04]} 21... Qd7 {[%clk 0:01:28.3]} 22. Nf2 {[%clk 0:01:45.9]}
22... Ne4 {[%clk 0:01:24.7]} 23. f5 {[%clk 0:01:37.6]} 23... g5 {[%clk
0:01:14.3]} 24. Ng4 {[%clk 0:01:38.5]} 24... f6 {[%clk 0:01:09.5]} 25. Nc3
{[%clk 0:01:18.9]} 25... Nxc3 {[%clk 0:00:59.9]} 26. Bxc3 {[%clk 0:01:19.8]}
26... Qd6 {[%clk 0:00:55.8]} 27. Bb2 {[%clk 0:01:10.2]} 27... Nd7 {[%clk
0:00:56.5]} 28. Qb3 {[%clk 0:01:10.5]} 28... c5 {[%clk 0:00:50.9]} 29. bxc6
{[%clk 0:01:09]} 29... Rxc6 {[%clk 0:00:50.7]} 30. e4 {[%clk 0:01:05.2]} 30...
Rxc1+ {[%clk 0:00:49.8]} 31. Bxc1 {[%clk 0:01:06.4]} 31... Kh8 {[%clk
0:00:50.4]} 32. e5 {[%clk 0:01:02.3]} 32... fxe5 {[%clk 0:00:51.7]} 33. f6
{[%clk 0:00:59.2]} 33... Nxf6 {[%clk 0:00:20.6]} 34. dxe5 {[%clk 0:01:00.1]}
34... Rxe5 {[%clk 0:00:22.3]} 35. Nxe5 {[%clk 0:00:59.1]} 35... Qxe5 {[%clk
0:00:24.2]} 36. Qxb6 {[%clk 0:00:54.2]} 36... Qe7 {[%clk 0:00:19.8]} 37. Bxg5
{[%clk 0:00:54.5]} 37... Nd7 {[%clk 0:00:13.6]} 38. Qg6 {[%clk 0:00:30.5]} 38...
Bd4+ {[%clk 0:00:12.8]} 39. Kh1 {[%clk 0:00:30.8]} 1-0

[Event "*** Titled Tuesday 3|2 Blitz"]
[Site "Chess.com"]
[Date "2016.10.04"]
[Round "2"]
[White "AndrewMcStone"]
[Black "wannabe2700"]
[Result "0-1"]
[WhiteElo "2024"]
[BlackElo "2282"]
[TimeControl "180+2"]
[EndTime "11:21:30 PDT"]
[Termination "wannabe2700 won by resignation"]

1. d4 {[%clk 0:03:02]} 1... d5 {[%clk 0:03:00.3]} 2. c4 {[%clk 0:03:02.7]} 2...
e6 {[%clk 0:03:01.4]} 3. Nc3 {[%clk 0:03:03.6]} 3... c5 {[%clk 0:03:02.5]} 4.
cxd5 {[%clk 0:03:04.1]} 4... exd5 {[%clk 0:03:04.4]} 5. Nf3 {[%clk 0:03:04.4]}
5... Nc6 {[%clk 0:03:05.7]} 6. g3 {[%clk 0:03:05.9]} 6... Nf6 {[%clk 0:03:06.8]}
7. Bg2 {[%clk 0:03:07.4]} 7... Be7 {[%clk 0:03:08.4]} 8. O-O {[%clk 0:03:08.8]}
8... O-O {[%clk 0:03:09.9]} 9. Bg5 {[%clk 0:03:03.2]} 9... c4 {[%clk 0:03:09.9]}
10. Ne5 {[%clk 0:03:00.1]} 10... Be6 {[%clk 0:03:10.7]} 11. b3 {[%clk
0:02:48.8]} 11... h6 {[%clk 0:03:11.7]} 12. Be3 {[%clk 0:02:29.1]} 12... Qa5
{[%clk 0:03:08.5]} 13. Qd2 {[%clk 0:02:11.3]} 13... Bb4 {[%clk 0:03:01.3]} 14.
Rfc1 {[%clk 0:01:57]} 14... Rfd8 {[%clk 0:02:58.4]} 15. a3 {[%clk 0:01:47.8]}
15... Bxc3 {[%clk 0:02:56.8]} 16. Qxc3 {[%clk 0:01:39.1]} 16... Qxc3 {[%clk
0:02:48.6]} 17. Rxc3 {[%clk 0:01:40.1]} 17... cxb3 {[%clk 0:02:12.9]} 18. Nxc6
{[%clk 0:01:33.3]} 18... bxc6 {[%clk 0:02:10.1]} 19. Rxb3 {[%clk 0:01:34.2]}
19... Nd7 {[%clk 0:01:57.6]} 20. Bd2 {[%clk 0:00:51.2]} 20... Rdc8 {[%clk
0:01:41.6]} 21. Rc1 {[%clk 0:00:41.3]} 21... Nb6 {[%clk 0:01:41.6]} 22. Bb4
{[%clk 0:00:33.8]} 22... Nc4 {[%clk 0:01:37.1]} 23. e3 {[%clk 0:00:33.3]} 23...
Rcb8 {[%clk 0:01:34.5]} 24. Rbb1 {[%clk 0:00:16.3]} 24... Rb6 {[%clk 0:01:28.9]}
25. Bc5 {[%clk 0:00:14.2]} 25... Rb5 {[%clk 0:01:18.6]} 26. Bf1 {[%clk
0:00:10.3]} 26... a6 {[%clk 0:01:00.7]} 27. Bxc4 {[%clk 0:00:09.6]} 27... dxc4
{[%clk 0:01:01.4]} 28. Kf1 {[%clk 0:00:05.2]} 28... Bf5 {[%clk 0:00:56.2]} 29.
Rxb5 {[%clk 0:00:05.7]} 29... axb5 {[%clk 0:00:57.2]} 30. Ke2 {[%clk 0:00:06.1]}
30... Bd3+ {[%clk 0:00:55.2]} 31. Kd2 {[%clk 0:00:07.4]} 31... g5 {[%clk
0:00:53.6]} 32. Kc3 {[%clk 0:00:07]} 32... Kg7 {[%clk 0:00:52.9]} 33. Rd1 {[%clk
0:00:07.6]} 33... g4 {[%clk 0:00:53.1]} 34. Rd2 {[%clk 0:00:08]} 34... Kg6
{[%clk 0:00:54.1]} 35. Rb2 {[%clk 0:00:09]} 35... Kf5 {[%clk 0:00:54.8]} 36. Rb4
{[%clk 0:00:10]} 36... Rxa3+ {[%clk 0:00:54.6]} 37. Kd2 {[%clk 0:00:08.4]} 37...
Ra2+ {[%clk 0:00:55.4]} 38. Ke1 {[%clk 0:00:07.6]} 38... Re2+ {[%clk 0:00:55.9]}
39. Kd1 {[%clk 0:00:08.9]} 39... Rxf2 {[%clk 0:00:56.4]} 40. e4+ {[%clk
0:00:10.3]} 40... Kxe4 {[%clk 0:00:54.9]} 41. d5 {[%clk 0:00:11.5]} 41... Rf1+
{[%clk 0:00:54.8]} 42. Kd2 {[%clk 0:00:13.1]} 42... Kxd5 {[%clk 0:00:55.7]} 0-1

[Event "*** Titled Tuesday 3|2 Blitz"]
[Site "Chess.com"]
[Date "2016.10.04"]
[Round "2"]
[White "Er_is_geen_hoop_meer"]
[Black "agser"]
[Result "1-0"]
[WhiteElo "2274"]
[BlackElo "2495"]
[TimeControl "180+2"]
[EndTime "11:21:35 PDT"]
[Termination "Er_is_geen_hoop_meer won on time"]

1. Nf3 {[%clk 0:03:02]} 1... d5 {[%clk 0:02:59.9]} 2. g3 {[%clk 0:03:02.7]} 2...
c6 {[%clk 0:02:55.4]} 3. Bg2 {[%clk 0:03:01.1]} 3... Bg4 {[%clk 0:02:56.9]} 4.
O-O {[%clk 0:03:02.1]} 4... Nd7 {[%clk 0:02:58.5]} 5. c4 {[%clk 0:03:02]} 5...
Bxf3 {[%clk 0:02:59.1]} 6. Bxf3 {[%clk 0:03:02.6]} 6... Ne5 {[%clk 0:03:00.3]}
7. cxd5 {[%clk 0:02:54.7]} 7... Nxf3+ {[%clk 0:03:00.7]} 8. exf3 {[%clk
0:02:56.6]} 8... cxd5 {[%clk 0:03:02.4]} 9. Nc3 {[%clk 0:02:56.6]} 9... e6
{[%clk 0:03:02.9]} 10. Qa4+ {[%clk 0:02:56.8]} 10... Qd7 {[%clk 0:03:03.7]} 11.
Nb5 {[%clk 0:02:58.7]} 11... Rc8 {[%clk 0:02:53.9]} 12. b3 {[%clk 0:02:58.9]}
12... a6 {[%clk 0:02:47.3]} 13. Nc3 {[%clk 0:02:54.8]} 13... Qxa4 {[%clk
0:02:43.8]} 14. bxa4 {[%clk 0:02:56.3]} 14... Nf6 {[%clk 0:02:41.8]} 15. Rb1
{[%clk 0:02:57.5]} 15... Rc7 {[%clk 0:02:42.8]} 16. a5 {[%clk 0:02:52.4]} 16...
Be7 {[%clk 0:02:40]} 17. Na4 {[%clk 0:02:52.5]} 17... O-O {[%clk 0:02:37.7]} 18.
d3 {[%clk 0:02:53.7]} 18... Rb8 {[%clk 0:02:29.5]} 19. Bf4 {[%clk 0:02:52.7]}
19... Ne8 {[%clk 0:01:34.9]} 20. Bxc7 {[%clk 0:02:51.2]} 20... Nxc7 {[%clk
0:01:36.8]} 21. Rfc1 {[%clk 0:02:50.4]} 21... Nb5 {[%clk 0:01:20.6]} 22. Nc3
{[%clk 0:02:50.5]} 22... Na7 {[%clk 0:01:15.2]} 23. Na4 {[%clk 0:02:43.2]} 23...
Nb5 {[%clk 0:00:59.5]} 24. Nb6 {[%clk 0:02:37.1]} 24... Bf6 {[%clk 0:00:30.7]}
25. Nd7 {[%clk 0:02:35.6]} 25... Rd8 {[%clk 0:00:24.4]} 26. Nxf6+ {[%clk
0:02:36.2]} 26... gxf6 {[%clk 0:00:26.3]} 27. a4 {[%clk 0:02:37.7]} 27... Nd4
{[%clk 0:00:24.9]} 28. Kg2 {[%clk 0:02:36.9]} 28... Rd7 {[%clk 0:00:22.9]} 29.
Rc8+ {[%clk 0:02:34.8]} 29... Kg7 {[%clk 0:00:22.5]} 30. Rb8 {[%clk 0:02:36.4]}
30... Rc7 {[%clk 0:00:19.9]} 31. R8xb7 {[%clk 0:02:33.2]} 31... Rc5 {[%clk
0:00:21.2]} 32. R1b4 {[%clk 0:02:33.8]} 32... Nf5 {[%clk 0:00:19.3]} 33. Rg4+
{[%clk 0:02:35.7]} 33... Kf8 {[%clk 0:00:18]} 34. Ra7 {[%clk 0:02:31.3]} 34...
Rxa5 {[%clk 0:00:18.9]} 35. Rb4 {[%clk 0:02:32]} 35... h5 {[%clk 0:00:18.4]} 36.
g4 {[%clk 0:02:30.3]} 36... hxg4 {[%clk 0:00:18.5]} 37. fxg4 {[%clk 0:02:32.2]}
37... Nh6 {[%clk 0:00:20]} 38. h3 {[%clk 0:02:31.2]} 38... Kg7 {[%clk
0:00:20.8]} 39. Kg3 {[%clk 0:02:31.2]} 39... Kg6 {[%clk 0:00:22.2]} 40. f4
{[%clk 0:02:31.6]} 40... e5 {[%clk 0:00:21.3]} 41. f5+ {[%clk 0:02:32.1]} 41...
Kg7 {[%clk 0:00:22.6]} 42. h4 {[%clk 0:02:28.1]} 42... Rc5 {[%clk 0:00:23.4]}
43. Rb3 {[%clk 0:02:26.3]} 43... Ra5 {[%clk 0:00:24.3]} 44. Kf3 {[%clk
0:02:26.5]} 44... Rxa4 {[%clk 0:00:24.9]} 45. g5 {[%clk 0:02:21]} 45... Nxf5
{[%clk 0:00:19.9]} 46. gxf6+ {[%clk 0:02:20.7]} 46... Kg6 {[%clk 0:00:17.5]} 47.
h5+ {[%clk 0:02:20.7]} 47... Kg5 {[%clk 0:00:15.9]} 48. Rb6 {[%clk 0:02:15.6]}
48... Nh6 {[%clk 0:00:12.7]} 49. Re7 {[%clk 0:02:12.9]} 49... Rf4+ {[%clk
0:00:12.5]} 50. Ke2 {[%clk 0:02:13.2]} 50... Rf5 {[%clk 0:00:09.6]} 51. Rxa6
{[%clk 0:02:12.5]} 51... Kxh5 {[%clk 0:00:10.9]} 52. Rd6 {[%clk 0:02:11.8]}
52... d4 {[%clk 0:00:11]} 53. Rd5 {[%clk 0:02:11.5]} 53... Ng4 {[%clk
0:00:11.8]} 54. Rxf7 {[%clk 0:02:12.1]} 54... Rf2+ {[%clk 0:00:03.1]} 55. Ke1
{[%clk 0:02:11.2]} 55... Rf3 {[%clk 0:00:04.6]} 56. Rd6 {[%clk 0:02:03.2]} 56...
Kg5 {[%clk 0:00:03.3]} 57. Rg7+ {[%clk 0:02:04.2]} 57... Kf4 {[%clk 0:00:04.8]}
58. f7 {[%clk 0:02:00.4]} 58... Kg3 {[%clk 0:00:02.9]} 59. Rdg6 {[%clk
0:01:58.2]} 59... Re3+ {[%clk 0:00:04]} 60. Kd2 {[%clk 0:01:57.8]} 1-0

[Event "*** Titled Tuesday 3|2 Blitz"]
[Site "Chess.com"]
[Date "2016.10.04"]
[Round "2"]
[White "GeorgMeier"]
[Black "GM_Levan_Pantsulaia"]
[Result "1-0"]
[WhiteElo "2726"]
[BlackElo "2457"]
[TimeControl "180+2"]
[EndTime "11:22:06 PDT"]
[Termination "GeorgMeier won on time"]

1. Nf3 {[%clk 0:03:00.8]} 1... c5 {[%clk 0:02:58.4]} 2. g3 {[%clk 0:03:02.7]}
2... b6 {[%clk 0:02:56.4]} 3. Bg2 {[%clk 0:03:00.3]} 3... Bb7 {[%clk 0:02:58]}
4. c4 {[%clk 0:03:01.4]} 4... g6 {[%clk 0:02:57.7]} 5. Nc3 {[%clk 0:03:00.9]}
5... Bg7 {[%clk 0:02:58.8]} 6. b3 {[%clk 0:03:02.4]} 6... Nc6 {[%clk 0:02:58.1]}
7. Bb2 {[%clk 0:03:02.5]} 7... Nh6 {[%clk 0:02:59.2]} 8. O-O {[%clk 0:03:02.1]}
8... O-O {[%clk 0:03:00]} 9. e3 {[%clk 0:03:01.8]} 9... Nf5 {[%clk 0:03:01.1]}
10. Qb1 {[%clk 0:03:01.7]} 10... e6 {[%clk 0:03:01.7]} 11. Ne2 {[%clk
0:03:01.8]} 11... d5 {[%clk 0:02:58.2]} 12. Bxg7 {[%clk 0:02:56.5]} 12... Kxg7
{[%clk 0:02:59.3]} 13. Qb2+ {[%clk 0:02:51.7]} 13... Qf6 {[%clk 0:02:59.9]} 14.
Qxf6+ {[%clk 0:02:52.7]} 14... Kxf6 {[%clk 0:03:00.6]} 15. cxd5 {[%clk
0:02:42.4]} 15... exd5 {[%clk 0:03:00.2]} 16. Nf4 {[%clk 0:02:43.5]} 16... Rad8
{[%clk 0:02:32.3]} 17. g4 {[%clk 0:02:44.3]} 17... Nfe7 {[%clk 0:02:29.9]} 18.
g5+ {[%clk 0:02:44.3]} 18... Kg7 {[%clk 0:02:29.5]} 19. a3 {[%clk 0:02:45.9]}
19... a5 {[%clk 0:02:14.5]} 20. d4 {[%clk 0:02:42.8]} 20... cxd4 {[%clk
0:02:14.2]} 21. Nxd4 {[%clk 0:02:38.9]} 21... Nxd4 {[%clk 0:02:15.1]} 22. exd4
{[%clk 0:02:40.1]} 22... Nf5 {[%clk 0:02:16.7]} 23. Rfd1 {[%clk 0:02:40.5]}
23... h6 {[%clk 0:02:14.6]} 24. gxh6+ {[%clk 0:02:37.3]} 24... Kxh6 {[%clk
0:02:15.6]} 25. Rac1 {[%clk 0:02:38.7]} 25... Rd7 {[%clk 0:02:00.6]} 26. Bh3
{[%clk 0:02:32.8]} 26... Kg5 {[%clk 0:02:00.8]} 27. Nd3 {[%clk 0:02:33.2]} 27...
Re7 {[%clk 0:01:35.8]} 28. f4+ {[%clk 0:02:10.8]} 28... Kh6 {[%clk 0:01:21.1]}
29. Bxf5 {[%clk 0:01:41.4]} 29... gxf5 {[%clk 0:01:22]} 30. Re1 {[%clk
0:01:34.8]} 30... Re4 {[%clk 0:01:13]} 31. Rc7 {[%clk 0:01:35.2]} 31... Ba6
{[%clk 0:01:06.9]} 32. Rxe4 {[%clk 0:01:20.6]} 32... fxe4 {[%clk 0:00:52.2]} 33.
Ne5 {[%clk 0:01:20.8]} 33... f6 {[%clk 0:00:45.5]} 34. Ng4+ {[%clk 0:01:21.2]}
34... Kg6 {[%clk 0:00:24]} 35. Ne3 {[%clk 0:01:17.4]} 35... Rh8 {[%clk
0:00:20.9]} 36. Kg2 {[%clk 0:01:09.5]} 36... Be2 {[%clk 0:00:17.5]} 37. Kg3
{[%clk 0:01:07.4]} 37... b5 {[%clk 0:00:16.4]} 38. f5+ {[%clk 0:00:28]} 38...
Kh5 {[%clk 0:00:16.6]} 39. Nxd5 {[%clk 0:00:25.6]} 39... Kg5 {[%clk 0:00:17.5]}
40. Ne3 {[%clk 0:00:26.6]} 40... b4 {[%clk 0:00:12.6]} 41. axb4 {[%clk
0:00:27.1]} 41... axb4 {[%clk 0:00:13.2]} 42. Rg7+ {[%clk 0:00:20.8]} 42... Kh5
{[%clk 0:00:12.2]} 43. h4 {[%clk 0:00:20.8]} 43... Kh6 {[%clk 0:00:02.3]} 44.
Rg6+ {[%clk 0:00:22.1]} 1-0

[Event "*** Titled Tuesday 3|2 Blitz"]
[Site "Chess.com"]
[Date "2016.10.04"]
[Round "2"]
[White "Blitzstream"]
[Black "VMikhalevski"]
[Result "0-1"]
[WhiteElo "2546"]
[BlackElo "2462"]
[TimeControl "180+2"]
[EndTime "11:22:12 PDT"]
[Termination "VMikhalevski won by resignation"]

1. d4 {[%clk 0:03:02]} 1... Nf6 {[%clk 0:02:59.8]} 2. Bg5 {[%clk 0:03:02.6]}
2... Ne4 {[%clk 0:03:00]} 3. Bh4 {[%clk 0:03:03.4]} 3... c5 {[%clk 0:03:01.5]}
4. f3 {[%clk 0:03:04.4]} 4... g5 {[%clk 0:03:01.2]} 5. fxe4 {[%clk 0:03:06.3]}
5... gxh4 {[%clk 0:03:01.8]} 6. e3 {[%clk 0:03:08.2]} 6... d5 {[%clk 0:02:52.7]}
7. exd5 {[%clk 0:02:14.5]} 7... Qxd5 {[%clk 0:02:48.7]} 8. Nf3 {[%clk
0:02:13.8]} 8... h3 {[%clk 0:02:45.1]} 9. Nc3 {[%clk 0:02:11.8]} 9... Qe6 {[%clk
0:02:44.6]} 10. e4 {[%clk 0:02:05.4]} 10... cxd4 {[%clk 0:02:43.9]} 11. Qxd4
{[%clk 0:02:05]} 11... Rg8 {[%clk 0:02:37.3]} 12. Nd5 {[%clk 0:01:41.1]} 12...
Qd6 {[%clk 0:02:19.2]} 13. e5 {[%clk 0:01:39.4]} 13... Qd8 {[%clk 0:02:18.8]}
14. O-O-O {[%clk 0:01:37.1]} 14... Nc6 {[%clk 0:02:10.7]} 15. Qe4 {[%clk
0:01:32.3]} 15... Qa5 {[%clk 0:02:03.5]} 16. Bb5 {[%clk 0:00:40.9]} 16... Rg6
{[%clk 0:01:30.9]} 17. Nf6+ {[%clk 0:00:33.5]} 17... Rxf6 {[%clk 0:01:26.6]} 18.
exf6 {[%clk 0:00:22.2]} 18... Qxb5 {[%clk 0:01:27.4]} 19. fxe7 {[%clk
0:00:18.8]} 19... Nxe7 {[%clk 0:01:24.6]} 20. Rhe1 {[%clk 0:00:09.3]} 20... Bf5
{[%clk 0:01:12.2]} 21. Qf4 {[%clk 0:00:04.8]} 21... Bd7 {[%clk 0:00:41.6]} 22.
Nd4 {[%clk 0:00:05.3]} 22... Qb6 {[%clk 0:00:39]} 23. Nf5 {[%clk 0:00:03.9]}
23... Bxf5 {[%clk 0:00:26.5]} 24. Qxf5 {[%clk 0:00:05.8]} 24... Qc6 {[%clk
0:00:23.1]} 25. gxh3 {[%clk 0:00:04.7]} 25... Rc8 {[%clk 0:00:22.7]} 26. Qxh7
{[%clk 0:00:05]} 26... Qg6 {[%clk 0:00:20.8]} 27. Qxg6 {[%clk 0:00:04.7]} 27...
fxg6 {[%clk 0:00:21.7]} 28. Rf1 {[%clk 0:00:06.1]} 28... Bg7 {[%clk 0:00:21.9]}
29. Rde1 {[%clk 0:00:06.5]} 29... Rc7 {[%clk 0:00:22.5]} 30. Re6 {[%clk
0:00:07.6]} 30... Kd7 {[%clk 0:00:20.9]} 31. Re3 {[%clk 0:00:09.3]} 31... Bh6
{[%clk 0:00:21.2]} 32. Rf3 {[%clk 0:00:09.7]} 32... Rc6 {[%clk 0:00:20.2]} 33.
Kd1 {[%clk 0:00:10.6]} 33... Bxe3 {[%clk 0:00:19.9]} 34. Rxe3 {[%clk 0:00:12.5]}
34... Nf5 {[%clk 0:00:20.2]} 35. Rd3+ {[%clk 0:00:13.7]} 35... Rd6 {[%clk
0:00:21.1]} 36. Ke2 {[%clk 0:00:15.6]} 36... Rxd3 {[%clk 0:00:21.3]} 37. Kxd3
{[%clk 0:00:17.5]} 37... Ke6 {[%clk 0:00:21.4]} 38. c4 {[%clk 0:00:18.4]} 38...
Ke5 {[%clk 0:00:22.1]} 39. b4 {[%clk 0:00:19.6]} 39... b6 {[%clk 0:00:22.8]} 40.
a4 {[%clk 0:00:20.7]} 40... Ne7 {[%clk 0:00:21]} 41. Ke3 {[%clk 0:00:21.1]}
41... Nc6 {[%clk 0:00:21]} 42. b5 {[%clk 0:00:22.4]} 42... Na5 {[%clk
0:00:21.9]} 43. Kd3 {[%clk 0:00:24]} 43... Nb3 {[%clk 0:00:23.1]} 44. Kc3 {[%clk
0:00:25.5]} 44... Nc5 {[%clk 0:00:23.7]} 45. Kb4 {[%clk 0:00:27]} 45... Kd4
{[%clk 0:00:24.6]} 46. a5 {[%clk 0:00:28.4]} 46... Kd3 {[%clk 0:00:25.5]} 47.
axb6 {[%clk 0:00:29]} 47... axb6 {[%clk 0:00:26.1]} 48. h4 {[%clk 0:00:30.7]}
48... Kc2 {[%clk 0:00:26.9]} 49. Ka3 {[%clk 0:00:29]} 49... Kc3 {[%clk
0:00:27.4]} 50. Ka2 {[%clk 0:00:30.9]} 50... Kxc4 {[%clk 0:00:28.4]} 51. Kb2
{[%clk 0:00:32.8]} 51... Kxb5 {[%clk 0:00:29.4]} 52. Kc3 {[%clk 0:00:34.7]}
52... Kc6 {[%clk 0:00:30.4]} 53. Kd4 {[%clk 0:00:36.6]} 53... Kd6 {[%clk
0:00:30.6]} 54. Ke3 {[%clk 0:00:37.2]} 54... Ke5 {[%clk 0:00:30.9]} 55. Kd2
{[%clk 0:00:37.6]} 55... Kd4 {[%clk 0:00:31.8]} 56. h3 {[%clk 0:00:38.5]} 56...
b5 {[%clk 0:00:32.4]} 0-1